fUST/lending_fUST_20240611
["ID","MTS","AMOUNT","RATE_DAILY","PERIOD"]
[329084876,1718091035839,-164.0,0.00020789,2]
[329084878,1718091035849,-164.0,0.00020789,2]
[329084880,1718091035859,-164.0,0.00020789,2]
[329084882,1718091035872,-164.0,0.00020789,2]
[329084884,1718091035883,-164.0,0.00020789,2]
[329084886,1718091035892,-164.0,0.00020789,2]
[329084888,1718091035902,-164.0,0.00020789,2]
[329084890,1718091035913,-183.0,0.00020835,2]
[329084892,1718091035923,-183.0,0.00020835,2]
[329084894,1718091035937,-183.0,0.00020835,2]
[329084896,1718091035949,-183.0,0.00020835,2]
[329084898,1718091035959,-183.0,0.00020835,2]
[329084900,1718091035969,-183.0,0.00020835,2]
[329084902,1718091035990,-183.0,0.00020835,2]
[329084904,1718091036000,-183.0,0.00020835,2]
[329084906,1718091036011,-183.0,0.00020835,2]
[329084908,1718091036021,-183.0,0.00020835,2]
[329084910,1718091036032,-183.0,0.00020835,2]
[329084911,1718091036124,-183.0,0.00020835,2]
[329084913,1718091036134,-183.0,0.00020835,2]
[329084915,1718091036144,-183.0,0.00020835,2]
[329084917,1718091036154,-183.0,0.00020835,2]
[329084919,1718091036164,-183.0,0.00020835,2]
[329084921,1718091036174,-183.0,0.00020835,2]
[329084923,1718091036185,-183.0,0.00020835,2]
[329084924,1718091036195,-183.0,0.00020835,2]
[329084926,1718091036205,-183.0,0.00020835,2]
[329084928,1718091036215,-183.0,0.00020835,2]
[329084930,1718091036226,-183.0,0.00020835,2]
[329084932,1718091036236,-183.0,0.00020835,2]
[329084934,1718091036245,-183.0,0.00020835,2]
[329084936,1718091036255,-183.0,0.00020835,2]
[329084938,1718091036265,-7620.6861543,0.00021284,2]
[329084940,1718091036275,-1653.9231567,0.0002191,2]
[329084942,1718091036286,-166.666666,0.00021918,2]
[329084944,1718091036296,-166.666666,0.00022436,2]
[329084945,1718091036306,-153.0,0.00022525,2]
[329084947,1718091036316,-500.0,0.00022617,7]
[329084949,1718091036326,-153.0,0.00022678,2]
[329084951,1718091036336,-8.22777495,0.00022678,2]
[329085155,1718091040452,-144.77222505,0.00022678,2]
[329085156,1718091040462,-166.666666,0.00022955,2]
[329085157,1718091040472,-500.0,0.00023107,7]
[329085158,1718091040482,-500.0,0.00023107,7]
[329085159,1718091040493,-141.3608489,0.00023107,7]
[329085160,1718091041540,-358.6391511,0.00023107,7]
[329085161,1718091041550,-555.33,0.00023107,7]
[329085162,1718091041560,-151.02718489,0.00023286,7]
[329085163,1718091041570,-166.666666,0.00023473,2]
[329085164,1718091041580,-45527.78695711,0.00023609,2]
[329085165,1718091041590,-254.24441153,0.00023614,2]
[329085166,1718091041600,-20792.70848371,0.00023622,2]
[329085167,1718091041613,-18026.93511038,0.00023622,2]
[329085168,1718091041623,-2939.86811791,0.00023627,2]
[329085221,1718091047329,-572.35965774,0.00023627,2]
[329085233,1718091050798,-1272.07999241,0.00023627,2]
[329085235,1718091050808,-2955.37962547,0.00023628,2]
[329085242,1718091052180,-2293.68953987,0.00023628,2]
[329085243,1718091052195,-7967.64444353,0.00023628,2]
[329085244,1718091052209,-875.54968914,0.00023628,2]
[329085245,1718091052224,-18264.24300082,0.00023628,2]
[329085246,1718091117396,3428.76074168,9.999e-05,2]
[329085247,1718091286126,5238.45211208,9.999e-05,2]
[329085249,1718091521019,1537.96,0.00023,30]
[329085250,1718091772299,1139.96765534,0.0001,2]
[329085251,1718091808613,156.4441799,0.0001,2]
[329085281,1718092234127,-489.40086406,0.00016037,2]
[329085282,1718092234138,-4323.57573306,0.00016038,2]
[329085284,1718092234148,-1404.39559112,0.00016039,2]
[329085330,1718092244860,-660.11978951,0.00016036,2]
[329085333,1718092244871,-709.72761887,0.00016039,2]
[329085336,1718092244881,-300.0,0.00016041,2]
[329085339,1718092244891,-3000.0,0.00016042,2]
[329085342,1718092244901,-160.3612866,0.00016379,2]
[329085344,1718092244911,-293.15152335,0.00018005,2]
[329085347,1718092244921,-17.54562508,0.00018005,2]
[329085350,1718092244934,-997.51680281,0.00018005,2]
[329085353,1718092244946,-123.40466476,0.00018005,2]
[329085356,1718092244956,-24933.83835195,0.00018079,2]
[329085385,1718092245992,-8424.07952045,0.00018079,2]
[329085387,1718092246009,-179.93823102,0.00020783,2]
[329085390,1718092246019,-153.0,0.00020883,2]
[329085392,1718092246029,-153.0,0.00020883,2]
[329085393,1718092246039,-153.0,0.00020883,2]
[329085394,1718092246049,-153.0,0.00020883,2]
[329085395,1718092246060,-153.0,0.00020883,2]
[329085396,1718092246070,-153.0,0.00020883,2]
[329085397,1718092246081,-153.0,0.00020883,2]
[329085398,1718092246092,-153.0,0.00020886,2]
[329085399,1718092246102,-153.0,0.00020886,2]
[329085400,1718092246112,-153.0,0.00020886,2]
[329085401,1718092246124,-153.0,0.00020886,2]
[329085402,1718092246134,-153.0,0.00020886,2]
[329085403,1718092246145,-153.0,0.00020886,2]
[329085404,1718092246165,-153.0,0.00020886,2]
[329085405,1718092246177,-153.0,0.0002089,2]
[329085406,1718092246188,-153.0,0.0002089,2]
[329085407,1718092246199,-153.0,0.0002089,2]
[329085408,1718092246210,-153.0,0.0002089,2]
[329085409,1718092246221,-153.0,0.0002089,2]
[329085410,1718092246232,-153.0,0.0002089,2]
[329085411,1718092246243,-153.0,0.0002089,2]
[329085412,1718092246264,-153.0,0.0002089,2]
[329085413,1718092246274,-153.0,0.0002089,2]
[329085414,1718092246284,-153.0,0.0002089,2]
[329085415,1718092246295,-153.0,0.0002089,2]
[329085416,1718092246304,-651.6072264,0.000209,2]
[329085417,1718092246314,-210.91034149,0.000209,2]
[329085418,1718092246324,-1797.5977474,0.00021,5]
[329085427,1718092347941,2559.89806712,9.999e-05,2]
[329085445,1718092379500,187.41110824,9.999e-05,2]
[329085447,1718092411124,552.55976636,9.999e-05,2]
[329085452,1718092780390,168.220927,0.00025753,120]
[329085456,1718093283661,524.498606,9.999e-05,2]
[329085457,1718093295740,-2037.29149856,0.00015599,2]
[329085458,1718093295765,-489.40086406,0.000156,2]
[329085459,1718093323847,-660.11978951,0.00017964,2]
[329085460,1718093323879,-3602.97977755,0.00017965,2]
[329085461,1718093323910,-300.0,0.00018002,2]
[329085462,1718093323943,-300.0,0.00018002,2]
[329085463,1718093323975,-5761.01263904,0.00018003,2]
[329085464,1718093339775,-2859.90154202,0.00018003,2]
[329085465,1718093339808,-263.83665826,0.00018004,2]
[329085466,1718093339849,-1139.36136678,0.00018004,2]
[329085467,1718093366244,-155.0294556,0.000156,2]
[329085468,1718093366278,-2909.7506752,0.00018392,2]
[329085506,1718093433355,-1363.33028068,0.00018392,2]
[329085569,1718093439070,-791.69917492,0.00018392,2]
[329085571,1718093439081,-155.0294556,0.00018392,2]
[329085573,1718093439092,-1253.0,0.00018611,2]
[329085575,1718093439103,-726.06020811,0.00019134,2]
[329085579,1718093439349,-526.93979189,0.00019134,2]
[329085582,1718093439360,-1253.0,0.00019657,2]
[329085585,1718093439371,-183.180211,0.00019817,2]
[329085586,1718093439381,-489.40086406,0.00019999,2]
[329085588,1718093439391,-1110.84029337,0.0002,2]
[329085590,1718093439401,-1253.0,0.0002018,2]
[329085592,1718093439411,-1253.0,0.00020703,2]
[329085594,1718093439422,-660.11978951,0.00020781,2]
[329085596,1718093439432,-3602.97977755,0.00020782,2]
[329085597,1718093439444,-4239.70515949,0.00020807,2]
[329085598,1718093439455,-153.0,0.00020881,2]
[329085599,1718093439466,-153.0,0.00020881,2]
[329085600,1718093439476,-153.0,0.00020886,2]
[329085601,1718093439487,-270.61248396,0.000209,2]
[329085602,1718093439497,-1268.35575088,0.00020999,2]
[329085603,1718093439507,-3930.4779526,0.00021,5]
[329085604,1718093439516,-1253.0,0.00021226,2]
[329085605,1718093439527,-205.1548009,0.00021701,2]
[329085606,1718093439537,-1253.0,0.00021749,3]
[329085607,1718093439548,-270.61248395,0.00021757,2]
[329085608,1718093439558,-151.0,0.00021841,3]
[329085609,1718093439570,-1902.72717762,0.00021916,4]
[329085610,1718093439581,-1853.86146306,0.00021916,2]
[329085611,1718093439592,-500.0,0.00021916,2]
[329085612,1718093439603,-500.0,0.00021916,2]
[329085613,1718093439614,-500.0,0.00021916,2]
[329085614,1718093439624,-500.0,0.00021916,2]
[329085615,1718093439635,-500.0,0.00021916,2]
[329085616,1718093439645,-639.83434699,0.00021916,2]
[329085617,1718093439655,-19972.18742041,0.00021917,15]
[329085618,1718093439665,-500.0,0.00021917,2]
[329085619,1718093439679,-500.0,0.00021917,2]
[329085620,1718093439689,-504.11361198,0.00021917,2]
[329085621,1718093439699,-503.80010754,0.00021917,2]
[329085622,1718093439708,-502.52272512,0.00021917,2]
[329085623,1718093439719,-590.00910574,0.00021917,2]
[329085624,1718093439729,-500.0,0.00021917,2]
[329085625,1718093439740,-500.0,0.00021917,2]
[329085626,1718093439751,-501.15983677,0.00021917,2]
[329085627,1718093439761,-1009.35867159,0.00021917,2]
[329085628,1718093439776,-500.0,0.00021917,2]
[329085629,1718093439788,-500.0,0.00021917,2]
[329085630,1718093439799,-500.0,0.00021917,2]
[329085631,1718093439810,-502.44112935,0.00021917,2]
[329085632,1718093439823,-507.69173389,0.00021917,2]
[329085633,1718093439834,-536.77771604,0.00021917,2]
[329085634,1718093439846,-500.0,0.00021917,2]
[329085635,1718093439856,-500.0,0.00021917,2]
[329085636,1718093439868,-500.0,0.00021917,2]
[329085637,1718093439879,-500.0,0.00021917,2]
[329085638,1718093439889,-500.0,0.00021917,2]
[329085639,1718093439899,-358.49130696,0.00021917,2]
[329085640,1718093439910,-500.0,0.00021917,2]
[329085641,1718093439920,-500.0,0.00021917,2]
[329085642,1718093439930,-502.42349639,0.00021917,2]
[329085643,1718093439942,-500.0,0.00021917,2]
[329085644,1718093439952,-315.54397708,0.00021917,2]
[329085645,1718093439962,-500.0,0.00021917,2]
[329085646,1718093439972,-500.0,0.00021917,2]
[329085647,1718093439983,-373.84601486,0.00021917,2]
[329085648,1718093439994,-501.94960182,0.00021917,2]
[329085649,1718093440004,-500.0,0.00021917,2]
[329085650,1718093440015,-500.0,0.00021917,2]
[329085651,1718093440026,-500.0,0.00021917,2]
[329085652,1718093440036,-500.0,0.00021917,2]
[329085653,1718093440046,-500.0,0.00021917,2]
[329085654,1718093440056,-500.0,0.00021917,2]
[329085655,1718093440068,-568.15777575,0.00021917,2]
[329085656,1718093440079,-503.38852729,0.00021917,2]
[329085657,1718093440089,-500.0,0.00021917,2]
[329085658,1718093440099,-500.0,0.00021917,2]
[329085659,1718093440109,-500.0,0.00021917,2]
[329085660,1718093440120,-505.47250215,0.00021917,2]
[329085661,1718093440132,-500.0,0.00021917,2]
[329085662,1718093440142,-500.0,0.00021917,2]
[329085663,1718093440153,-500.0,0.00021917,2]
[329085665,1718093440164,-500.0,0.00021917,2]
[329085667,1718093440175,-505.03349213,0.00021917,2]
[329085668,1718093440185,-500.0,0.00021917,2]
[329085669,1718093440196,-500.0,0.00021917,2]
[329085670,1718093440207,-500.0,0.00021917,2]
[329085671,1718093440217,-500.0,0.00021917,2]
[329085672,1718093440228,-500.0,0.00021917,2]
[329085673,1718093440238,-500.0,0.00021917,2]
[329085674,1718093440249,-500.0,0.00021917,2]
[329085675,1718093440260,-500.0,0.00021917,2]
[329085676,1718093440270,-501.41958495,0.00021917,2]
[329085677,1718093440280,-500.97617179,0.00021917,2]
[329085678,1718093440291,-500.0,0.00021917,2]
[329085679,1718093440302,-500.0,0.00021917,2]
[329085680,1718093440313,-500.0,0.00021917,2]
[329085681,1718093440326,-500.0,0.00021917,2]
[329085682,1718093440337,-500.0,0.00021917,2]
[329085683,1718093440348,-500.0,0.00021917,2]
[329085684,1718093440359,-500.0,0.00021917,2]
[329085685,1718093440370,-500.93578537,0.00021917,2]
[329085686,1718093440380,-500.0,0.00021917,2]
[329085687,1718093440391,-2692.86,0.00021917,2]
[329085688,1718093440402,-500.0,0.00021917,2]
[329085689,1718093440412,-500.0,0.00021917,2]
[329085690,1718093440423,-500.0,0.00021917,2]
[329085691,1718093440433,-502.50623745,0.00021917,2]
[329085692,1718093440443,-505.76753032,0.00021917,2]
[329085693,1718093440454,-500.0,0.00021917,2]
[329085694,1718093440464,-500.0,0.00021917,2]
[329085695,1718093440475,-500.0,0.00021917,2]
[329085696,1718093440485,-500.0,0.00021917,2]
[329085697,1718093440496,-200.78800434,0.00021917,2]
[329085698,1718093440506,-525.03726627,0.00021917,2]
[329085699,1718093440517,-505.09307229,0.00021917,2]
[329085700,1718093440527,-500.0,0.00021917,2]
[329085701,1718093440537,-500.0,0.00021917,2]
[329085702,1718093440548,-500.0,0.00021917,2]
[329085703,1718093440558,-526.47922446,0.00021917,2]
[329085704,1718093440570,-500.0,0.00021917,2]
[329085705,1718093440580,-500.0,0.00021917,2]
[329085706,1718093440590,-500.0,0.00021917,2]
[329085707,1718093440600,-505.3035352,0.00021917,2]
[329085708,1718093440611,-500.0,0.00021917,2]
[329085709,1718093440622,-500.0,0.00021917,2]
[329085710,1718093440632,-500.0,0.00021917,2]
[329085711,1718093440642,-500.0,0.00021917,2]
[329085712,1718093440654,-500.0,0.00021917,2]
[329085713,1718093440664,-500.0,0.00021917,2]
[329085714,1718093440678,-539.40726166,0.00021917,2]
[329085715,1718093440688,-500.0,0.00021917,2]
[329085716,1718093440698,-500.0,0.00021917,2]
[329085717,1718093440709,-500.0,0.00021917,2]
[329085718,1718093440721,-500.0,0.00021917,2]
[329085719,1718093440731,-501.68160764,0.00021917,2]
[329085720,1718093440742,-500.0,0.00021917,2]
[329085721,1718093440753,-502.04414044,0.00021917,2]
[329085722,1718093440764,-506.21401444,0.00021917,2]
[329085723,1718093440780,-507.09658554,0.00021917,2]
[329085724,1718093440790,-500.0,0.00021917,2]
[329085725,1718093440801,-1548.22,0.00021917,2]
[329085726,1718093440811,-500.0,0.00021917,2]
[329085727,1718093440822,-500.0,0.00021917,2]
[329085728,1718093440832,-500.0,0.00021917,2]
[329085729,1718093440842,-500.0,0.00021917,2]
[329085730,1718093440852,-500.0,0.00021917,2]
[329085731,1718093440863,-218.88453789,0.00021917,2]
[329085732,1718093440874,-500.0,0.00021917,2]
[329085733,1718093440884,-500.0,0.00021917,2]
[329085734,1718093440895,-500.0,0.00021917,2]
[329085735,1718093440906,-500.0,0.00021917,2]
[329085736,1718093440916,-500.0,0.00021917,2]
[329085737,1718093440926,-500.0,0.00021917,2]
[329085738,1718093440937,-840.34,0.00021917,2]
[329085739,1718093440947,-500.0,0.00021917,2]
[329085740,1718093440957,-513.97518462,0.00021917,2]
[329085741,1718093440967,-500.0,0.00021917,2]
[329085742,1718093440977,-500.0,0.00021917,2]
[329085743,1718093440987,-500.0,0.00021917,2]
[329085744,1718093440998,-166.666666,0.00021918,2]
[329085745,1718093441008,-2825.46176219,0.00022091,2]
[329085746,1718093441018,-500.0,0.0002219,2]
[329085747,1718093441029,-500.0,0.0002219,2]
[329085748,1718093441040,-500.0,0.0002219,2]
[329085749,1718093441050,-500.0,0.0002219,2]
[329085750,1718093441060,-500.0,0.0002219,2]
[329085751,1718093441073,-500.0,0.0002219,2]
[329085752,1718093441083,-500.0,0.0002219,2]
[329085753,1718093441092,-500.0,0.0002219,2]
[329085754,1718093441103,-500.0,0.0002219,2]
[329085755,1718093441113,-500.0,0.0002219,2]
[329085756,1718093441123,-500.0,0.0002219,2]
[329085757,1718093441135,-500.0,0.0002219,2]
[329085758,1718093441145,-500.0,0.0002219,2]
[329085759,1718093441156,-500.0,0.0002219,2]
[329085760,1718093441167,-500.0,0.0002219,2]
[329085761,1718093441179,-500.0,0.0002219,2]
[329085762,1718093441190,-500.0,0.0002219,2]
[329085763,1718093441200,-500.0,0.0002219,2]
[329085764,1718093441210,-500.0,0.0002219,2]
[329085765,1718093441220,-500.0,0.0002219,2]
[329085766,1718093441230,-500.0,0.0002219,2]
[329085767,1718093441240,-162.90008896,0.0002219,2]
[329085768,1718093441250,-500.0,0.0002219,2]
[329085769,1718093441261,-500.0,0.0002219,2]
[329085770,1718093441271,-500.0,0.0002219,2]
[329085771,1718093441282,-500.0,0.0002219,2]
[329085772,1718093441293,-500.0,0.0002219,2]
[329085773,1718093441303,-500.0,0.0002219,2]
[329085774,1718093441314,-500.0,0.0002219,2]
[329085775,1718093441328,-500.0,0.0002219,2]
[329085776,1718093441342,-500.0,0.0002219,2]
[329085777,1718093441352,-300.0,0.0002219,2]
[329085780,1718093441463,-500.0,0.00022191,2]
[329085781,1718093441473,-562.48385708,0.00022191,2]
[329085782,1718093441483,-500.0,0.00022191,2]
[329085783,1718093441494,-500.0,0.00022191,2]
[329085784,1718093441504,-575.82472491,0.00022191,2]
[329085785,1718093441516,-500.0,0.00022191,2]
[329085786,1718093441526,-364.69045059,0.00022191,2]
[329085787,1718093441536,-180.7908262,0.00022191,2]
[329085788,1718093441547,-500.0,0.00022191,2]
[329085789,1718093441558,-506.32759368,0.00022191,2]
[329085790,1718093441571,-509.00200849,0.00022191,2]
[329085791,1718093441581,-505.48884414,0.00022191,2]
[329085792,1718093441591,-500.0,0.00022191,2]
[329085793,1718093441600,-500.0,0.00022191,2]
[329085794,1718093441610,-500.0,0.00022191,2]
[329085795,1718093441621,-500.0,0.00022191,2]
[329085796,1718093441631,-500.0,0.00022191,2]
[329085797,1718093441642,-285.89083862,0.00022191,2]
[329085798,1718093441652,-503.40066937,0.00022191,2]
[329085799,1718093441662,-500.0,0.00022191,2]
[329085800,1718093441675,-647.0,0.00022191,2]
[329085801,1718093441685,-500.0,0.00022191,2]
[329085802,1718093441695,-508.86402537,0.00022191,2]
[329085803,1718093441705,-516.74917005,0.00022191,2]
[329085804,1718093441715,-500.0,0.00022191,2]
[329085805,1718093441727,-500.0,0.00022191,2]
[329085806,1718093441737,-500.0,0.00022191,2]
[329085807,1718093441748,-500.0,0.00022191,2]
[329085808,1718093441759,-504.81830943,0.00022191,2]
[329085809,1718093441775,-500.0,0.00022191,2]
[329085810,1718093441785,-338.76,0.00022191,2]
[329085811,1718093441796,-509.61278591,0.00022191,2]
[329085812,1718093441806,-500.0,0.00022191,2]
[329085813,1718093441818,-500.0,0.00022191,2]
[329085814,1718093441828,-500.0,0.00022191,2]
[329085815,1718093441838,-500.0,0.00022191,2]
[329085816,1718093441848,-500.0,0.00022191,2]
[329085817,1718093441858,-500.0,0.00022191,2]
[329085818,1718093441868,-500.0,0.00022191,2]
[329085819,1718093441878,-503.43438394,0.00022191,2]
[329085820,1718093441889,-500.0,0.00022191,2]
[329085822,1718093441899,-2692.86,0.00022191,2]
[329085824,1718093441910,-500.0,0.00022191,2]
[329085825,1718093441920,-500.0,0.00022191,2]
[329085826,1718093441930,-238.2832711,0.00022191,2]
[329085827,1718093441940,-506.84725216,0.00022191,2]
[329085828,1718093441950,-500.0,0.00022191,2]
[329085829,1718093441960,-500.0,0.00022191,2]
[329085830,1718093441971,-504.78110733,0.00022191,2]
[329085831,1718093441981,-500.0,0.00022191,2]
[329085832,1718093441992,-508.89831846,0.00022191,2]
[329085833,1718093442002,-500.0,0.00022191,2]
[329085834,1718093442012,-500.0,0.00022191,2]
[329085835,1718093442024,-489.4585994,0.00022191,2]
[329085836,1718093442035,-508.95498162,0.00022191,2]
[329085837,1718093442045,-500.0,0.00022191,2]
[329085838,1718093442056,-500.0,0.00022191,2]
[329085839,1718093442068,-504.13251582,0.00022191,2]
[329085840,1718093442078,-500.0,0.00022191,2]
[329085841,1718093442088,-500.0,0.00022191,2]
[329085842,1718093442098,-500.0,0.00022191,2]
[329085843,1718093442109,-500.0,0.00022191,2]
[329085844,1718093442118,-500.0,0.00022191,2]
[329085845,1718093442129,-1548.22,0.00022191,2]
[329085847,1718093442140,-500.0,0.00022191,2]
[329085849,1718093442151,-617.91865752,0.00022191,2]
[329085851,1718093442161,-500.0,0.00022191,2]
[329085853,1718093442172,-500.0,0.00022191,2]
[329085855,1718093442182,-500.0,0.00022191,2]
[329085857,1718093442193,-500.0,0.00022191,2]
[329085859,1718093442203,-500.0,0.00022191,2]
[329085861,1718093442213,-500.0,0.00022191,2]
[329085863,1718093442223,-500.0,0.00022191,2]
[329085865,1718093442233,-840.34,0.00022191,2]
[329085867,1718093442244,-500.0,0.00022191,2]
[329085869,1718093442254,-501.72439855,0.00022191,2]
[329085871,1718093442265,-500.0,0.00022191,2]
[329085873,1718093442275,-624.4737888,0.00022201,2]
[329085875,1718093442286,-1253.0,0.00022272,3]
[329085877,1718093442297,-151.0,0.00022364,3]
[329085879,1718093442307,-166.666666,0.00022431,2]
[329085881,1718093442319,-500.0,0.00022465,2]
[329085883,1718093442329,-500.0,0.00022465,2]
[329085885,1718093442339,-500.0,0.00022465,2]
[329085887,1718093442349,-410.08212088,0.00022465,2]
[329085889,1718093442359,-500.0,0.00022465,2]
[329085891,1718093442370,-500.0,0.00022465,2]
[329085893,1718093442381,-500.0,0.00022465,2]
[329085895,1718093442391,-500.0,0.00022465,2]
[329085897,1718093442402,-504.99443237,0.00022465,2]
[329085899,1718093442412,-500.0,0.00022465,2]
[329085901,1718093442423,-504.86110031,0.00022465,2]
[329085903,1718093442434,-500.0,0.00022465,2]
[329085905,1718093442447,-500.0,0.00022465,2]
[329085907,1718093442458,-507.59295765,0.00022465,2]
[329085909,1718093442467,-500.0,0.00022465,2]
[329085911,1718093442478,-500.0,0.00022465,2]
[329085913,1718093442489,-503.87162291,0.00022465,2]
[329085915,1718093442500,-500.0,0.00022465,2]
[329085917,1718093442511,-500.0,0.00022465,2]
[329085920,1718093442521,-502.67435395,0.00022465,2]
[329085921,1718093442531,-500.0,0.00022465,2]
[329085923,1718093442542,-500.0,0.00022465,2]
[329085926,1718093442552,-500.0,0.00022465,2]
[329085927,1718093442563,-500.0,0.00022465,2]
[329085929,1718093442575,-505.74421584,0.00022465,2]
[329085931,1718093442586,-2692.86,0.00022465,2]
[329085933,1718093442597,-500.0,0.00022465,2]
[329085935,1718093442607,-500.0,0.00022465,2]
[329085937,1718093442618,-606.12277802,0.00022465,2]
[329085938,1718093442628,-500.0,0.00022465,2]
[329085939,1718093442639,-500.0,0.00022465,2]
[329085940,1718093442649,-389.67940837,0.00022465,2]
[329085941,1718093442660,-500.0,0.00022465,2]
[329085942,1718093442671,-500.0,0.00022465,2]
[329085943,1718093442685,-500.0,0.00022465,2]
[329085944,1718093442695,-500.0,0.00022465,2]
[329085945,1718093442706,-500.0,0.00022465,2]
[329085946,1718093442717,-500.0,0.00022465,2]
[329085947,1718093442727,-400.0,0.00022465,2]
[329085948,1718093442737,-500.0,0.00022465,2]
[329085949,1718093442748,-1548.22,0.00022465,2]
[329085950,1718093442761,-500.0,0.00022465,2]
[329085951,1718093442782,-552.32294094,0.00022465,2]
[329085953,1718093442793,-500.0,0.00022465,2]
[329085955,1718093442803,-500.0,0.00022465,2]
[329085957,1718093442813,-500.0,0.00022465,2]
[329085959,1718093442827,-500.0,0.00022465,2]
[329085961,1718093442837,-840.34,0.00022465,2]
[329085963,1718093442847,-500.0,0.00022465,2]
[329085965,1718093442858,-500.0,0.00022465,2]
[329085967,1718093442871,-2825.46176216,0.00022523,2]
[329085969,1718093442882,-270.61248395,0.00022614,2]
[329085971,1718093442893,-624.144913,0.00022689,2]
[329085973,1718093442903,-542.793362,0.00022689,2]
[329085974,1718093442913,-1870.225142,0.00022689,2]
[329085975,1718093442923,-1626.476301,0.00022689,2]
[329085977,1718093442933,-8041.279696,0.00022739,15]
[329085978,1718093442944,-500.0,0.00022739,2]
[329085979,1718093442954,-500.0,0.00022739,2]
[329085980,1718093442964,-500.0,0.00022739,2]
[329085981,1718093442974,-500.0,0.00022739,2]
[329085982,1718093442985,-502.9308258,0.00022739,2]
[329085983,1718093442995,-506.16560908,0.00022739,2]
[329085984,1718093443005,-500.0,0.00022739,2]
[329085985,1718093443016,-502.56400828,0.00022739,2]
[329085986,1718093443027,-500.0,0.00022739,2]
[329085987,1718093443037,-500.0,0.00022739,2]
[329085988,1718093443048,-500.0,0.00022739,2]
[329085989,1718093443058,-500.0,0.00022739,2]
[329085990,1718093443071,-500.0,0.00022739,2]
[329085991,1718093443081,-500.0,0.00022739,2]
[329085992,1718093443091,-627.44441251,0.00022739,2]
[329085993,1718093443103,-500.0,0.00022739,2]
[329085994,1718093443114,-506.11720859,0.00022739,2]
[329085995,1718093443125,-2692.86,0.00022739,2]
[329085996,1718093443136,-500.0,0.00022739,2]
[329085997,1718093443147,-500.0,0.00022739,2]
[329085998,1718093443158,-500.0,0.00022739,2]
[329085999,1718093443168,-500.0,0.00022739,2]
[329086000,1718093443178,-500.0,0.00022739,2]
[329086001,1718093443188,-500.0,0.00022739,2]
[329086002,1718093443198,-500.0,0.00022739,2]
[329086003,1718093443209,-500.0,0.00022739,2]
[329086004,1718093443219,-500.0,0.00022739,2]
[329086005,1718093443229,-1548.22,0.00022739,2]
[329086006,1718093443239,-500.0,0.00022739,2]
[329086007,1718093443250,-507.40126218,0.00022739,2]
[329086008,1718093443262,-500.0,0.00022739,2]
[329086009,1718093443273,-500.0,0.00022739,2]
[329086010,1718093443286,-840.34,0.00022739,2]
[329086011,1718093443296,-500.0,0.00022739,2]
[329086012,1718093443307,-468.89440039,0.00022739,2]
[329086013,1718093443318,-1253.0,0.00022795,3]
[329086014,1718093443328,-50258.73302219,0.000228,2]
[329086015,1718093443339,-151.0,0.00022887,3]
[329086016,1718093443349,-166.666666,0.00022944,2]
[329086017,1718093443360,-2825.46176216,0.00022955,2]
[329086018,1718093443370,-500.0,0.00022972,2]
[329086019,1718093443380,-500.0,0.00022972,2]
[329086020,1718093443391,-500.0,0.00022972,2]